{"text_format":"1","workbook":"xlsx","n_sheets":1,"sheets":["תבנית"],"not_rendered":{"charts":0,"images":0,"macros":1,"external_links":0,"defined_names":3,"comments":0,"pivot_tables":0},"unopened":[],"bounds":{"document_bytes":16777216,"sheet_cells":100000,"rows_first":2000,"rows_last":500,"rows_between":2000,"halvings":0,"cell_chars":16384,"cell_head_chars":4096},"cells_cut":0,"cells_raw":0,"read":"whole","date_system":"1900"}

{"sheet":"תבנית","index":0,"n_rows":41,"n_cols":23,"rows_kept":41,"cut":false,"hidden":false,"merged":[[0,11,1,13],[0,15,1,17],[2,1,2,6],[26,1,26,6],[36,1,36,6],[15,8,15,13],[25,8,25,13],[34,8,34,13],[17,15,17,20],[19,15,19,20]]}
[null,"בס\"ד",null,null,null,null,null,null,null,null,null,"מסכת",null,null,null,"ברכות"]
[]
[null,"פרק א - מאימתי",null,null,null,null,null,null,"כ.",null,null,null,null,null,null,"לח.",null,null,null,null,null,null,{"$f":"IFERROR(VLOOKUP(V3,dapim,2),\"\")","v":""}]
[null,"ב.",null,null,null,null,null,null,"כ:",null,null,null,null,null,null,"לח:",null,null,null,null,null,null,""]
[null,"ב:",null,null,null,null,null,null,"כא.",null,null,null,null,null,null,"לט.",null,null,null,null,null,null,""]
[null,"ג.",null,null,null,null,null,null,"כא:",null,null,null,null,null,null,"לט:",null,null,null,null,null,null,""]
[null,"ג:",null,null,null,null,null,null,"כב.",null,null,null,null,null,null,"מ.",null,null,null,null,null,null,""]
[null,"ד.","2021-09-19",null,null,null,null,null,"כב:",null,null,null,null,null,null,"מ:",null,null,null,null,null,null,""]
[null,"ד:",null,null,null,null,null,null,"כג.",null,null,null,null,null,null,"מא.",null,null,null,null,null,null,""]
[null,"ה.","2021-09-19",null,null,null,null,null,"כג:",null,null,null,null,null,null,"מא:",null,null,null,null,null,null,""]
[null,"ה:","2021-09-19","2021-09-19",null,null,null,null,"כד.",null,null,null,null,null,null,"מב.",null,null,null,null,null,null,""]
[null,"ו.","2021-09-19",null,null,null,null,null,"כד:",null,null,null,null,null,null,"מב:",null,null,null,null,null,null,""]
[null,"ו:","2021-09-19","2021-09-19","2021-09-19","2021-09-19",null,null,"כה.",null,null,null,null,null,null,"מג.",null,null,null,null,null,null,""]
[null,"ז.",null,null,null,null,null,null,"כה:",null,null,null,null,null,null,"מג:",null,null,null,null,null,null,""]
[null,"ז:",null,null,null,null,null,null,"כו.",null,null,null,null,null,null,"מד.",null,null,null,null,null,null,""]
[null,"ח.",null,null,null,null,null,1,{"$f":"IFERROR(VLOOKUP(H16,dapim,2),\"\")","v":""},null,null,null,null,null,null,"מד:",null,null,null,null,null,null,""]
[null,"ח:",null,null,null,null,null,null,"כו:",null,null,null,null,null,null,"מה.",null,null,null,null,null,null,""]
[null,"ט.",null,null,null,null,null,null,"כז.",null,null,null,null,null,1,{"$f":"IFERROR(VLOOKUP(O18,dapim,2),\"\")","v":""},null,null,null,null,null,null,""]
[null,"ט:",null,null,null,null,null,null,"כז:",null,null,null,null,null,null,"",null,null,null,null,null,null,""]
[null,"י.",null,null,null,null,null,null,"כח.",null,null,null,null,null,1,"היה קורא",null,null,null,null,null,null,""]
[null,"י:",null,null,null,null,null,null,"כח:",null,null,null,null,null,null,"",null,null,null,null,null,null,""]
[null,"יא.",null,null,null,null,null,null,"כט.",null,null,null,null,null,null,"",null,null,null,null,null,null,""]
[null,"יא:",null,null,null,null,null,null,"כט:",null,null,null,null,null,null,"",null,null,null,null,null,null,""]
[null,"יב.",null,null,null,null,null,null,"ל.",null,null,null,null,null,null,"",null,null,null,null,null,null,""]
[null,"יב:",null,null,null,null,null,null,"ל:",null,null,null,null,null,null,"",null,null,null,null,null,null,""]
[null,"יג.",null,null,null,null,null,1,{"$f":"IFERROR(VLOOKUP(H26,dapim,2),\"\")","v":""},null,null,null,null,null,null,"",null,null,null,null,null,null,""]
[1,"פרק ב - היה קורא",null,null,null,null,null,null,"לא.",null,null,null,null,null,null,"",null,null,null,null,null,null,""]
[null,"יג:",null,null,null,null,null,null,"לא:",null,null,null,null,null,null,"",null,null,null,null,null,null,""]
[null,"יד.",null,null,null,null,null,null,"לב.",null,null,null,null,null,null,"",null,null,null,null,null,null,""]
[null,"יד:",null,null,null,null,null,null,"לב:",null,null,null,null,null,null,"",null,null,null,null,null,null,""]
[null,"טו.",null,null,null,null,null,null,"לג.",null,null,null,null,null,null,"",null,null,null,null,null,null,""]
[null,"טו:",null,null,null,null,null,null,"לג:",null,null,null,null,null,null,"",null,null,null,null,null,null,""]
[null,"טז.",null,null,null,null,null,null,"לד.",null,null,null,null,null,null,"",null,null,null,null,null,null,""]
[null,"טז:",null,null,null,null,null,null,"לד:",null,null,null,null,null,null,"",null,null,null,null,null,null,""]
[null,"יז.",null,null,null,null,null,1,"",null,null,null,null,null,null,"",null,null,null,null,null,null,""]
[null,"יז:",null,null,null,null,null,null,"לה.",null,null,null,null,null,null,"",null,null,null,null,null,null,""]
[1,"פרק ג - מי שמתו",null,null,null,null,null,null,"לה:",null,null,null,null,null,null,"",null,null,null,null,null,null,""]
[null,"יח.",null,null,null,null,null,null,"לו.",null,null,null,null,null,null,"",null,null,null,null,null,null,""]
[null,"יח:",null,null,null,null,null,null,"לו:",null,null,null,null,null,null,"",null,null,null,null,null,null,""]
[null,"יט.",null,null,null,null,null,null,"לז.",null,null,null,null,null,null,"",null,null,null,null,null,null,""]
[null,"יט:",null,null,null,null,null,null,"לז:",null,null,null,null,null,null,"",null,null,null,null,null,null,""]